bitfinex/quotes_BTCUSD_20220202
["timestamp","ask_amount","ask_price","bid_price","bid_amount"]
[1643836459100,0.24911432,37355.0,37352.0,0.066917]
[1643836459299,0.24911432,37355.0,37351.0,0.133837]
[1643836459901,0.29911432,37355.0,37351.0,0.133837]
[1643836460107,0.29911432,37355.0,37351.0,0.41678079]
[1643836460752,0.05,37357.0,37351.0,0.41678079]
[1643836460950,0.05,37357.0,37351.0,0.46678079]
[1643836461152,0.01978741,37358.0,37352.0,0.036458]
[1643836461751,0.30028809,37358.0,37352.0,0.036458]
[1643836462154,0.30028809,37358.0,37354.0,0.00010912]
[1643836462351,0.00064315,37357.0,37354.0,0.00010912]
[1643836463151,0.75260913,37359.0,37354.0,0.00010912]
[1643836463549,0.75260913,37359.0,37354.0,0.0826195]
[1643836463550,0.22479072,37356.0,37354.0,0.0826195]
[1643836463749,0.05,37356.0,37354.0,0.0826195]
[1643836464351,0.75260913,37359.0,37354.0,0.00010912]
[1643836464585,0.0669269,37357.0,37354.0,0.00010912]
[1643836464982,0.05,37358.0,37354.0,0.00010912]
[1643836465182,0.43215861,37359.0,37355.0,0.036451]
[1643836465381,0.43215861,37359.0,37356.0,0.48561261]
[1643836465581,0.43215861,37359.0,37357.0,0.036445]
[1643836465780,0.43215861,37359.0,37358.0,0.60205679]
[1643836465984,0.43215861,37359.0,37358.0,0.386443]
[1643836466282,0.43215861,37359.0,37358.0,0.420743]
[1643836466681,0.43215861,37359.0,37358.0,2.64087493]
[1643836466882,0.1916835,37359.0,37358.0,2.64087493]
[1643836467082,0.2416835,37359.0,37358.0,2.64087493]
[1643836467385,0.00064266,37360.0,37359.0,0.8]
[1643836467582,0.00064266,37360.0,37359.0,0.903346]
[1643836467782,0.00064266,37360.0,37359.0,0.953346]
[1643836467984,0.13380537,37371.0,37360.0,1.5]
[1643836468241,0.00257022,37367.0,37361.0,0.46977297]
[1643836468439,0.00257022,37367.0,37362.0,0.036429]
[1643836468641,0.00257022,37367.0,37363.0,0.32614952]
[1643836468840,0.00257022,37367.0,37364.0,0.036426]
[1643836469042,0.00257022,37367.0,37365.0,0.0493]
[1643836469239,0.25315401,37382.0,37366.0,1.486422]
[1643836469440,0.067884,37383.0,37367.0,0.085709]
[1643836469441,0.001,37383.0,37367.0,0.085709]
[1643836469640,0.001,37383.0,37368.0,0.036406]
[1643836469842,0.001,37383.0,37371.0,0.066879]
[1643836470144,0.001,37383.0,37372.0,0.085698]
[1643836470340,0.001,37383.0,37374.0,0.29934725]
[1643836470341,0.24389017,37380.0,37374.0,0.29934725]
[1643836470544,0.25569642,37379.0,37374.0,0.29934725]
[1643836470743,0.25569642,37379.0,37374.0,0.10356909]
[1643836470942,0.25569642,37379.0,37372.0,0.29403537]
[1643836471144,0.25569642,37379.0,37369.0,0.133773]
[1643836471145,0.30569642,37379.0,37369.0,0.133773]
[1643836471351,0.30569642,37379.0,37367.0,0.0493]
[1643836471352,0.40569642,37379.0,37367.0,0.0493]
[1643836471982,0.00064258,37375.0,37373.0,0.28342365]
[1643836472194,0.13443452,37375.0,37373.0,0.28342365]
[1643836472383,0.21295029,37374.0,37373.0,0.28342365]
[1643836472582,0.21295029,37374.0,37369.0,0.07364006]
[1643836473185,0.00064259,37373.0,37369.0,0.07364006]
[1643836473585,0.00064259,37373.0,37370.0,0.51249357]
[1643836473986,0.05,37375.0,37370.0,0.51249357]
[1643836474186,0.134777,37383.0,37371.0,0.036408]
[1643836474488,0.00064259,37373.0,37372.0,0.29448171]
[1643836474685,0.00064259,37373.0,37372.0,0.135705]
[1643836475290,0.07811831,37378.0,37372.0,0.135705]
[1643836475487,0.001,37383.0,37372.0,0.135705]
[1643836475488,0.00064258,37374.0,37373.0,0.816882]
[1643836475732,0.00064258,37374.0,37373.0,1.68570637]
[1643836475937,0.00064258,37374.0,37373.0,1.43508664]
[1643836476134,0.11307526,37388.0,37374.0,0.35]
[1643836476334,0.16307526,37388.0,37385.0,0.2240763]
[1643836476535,0.353447,37387.0,37375.0,1.1521196]
[1643836476736,0.23452811,37387.0,37374.0,0.04974]
[1643836476936,0.143759,37389.0,37373.0,0.3117798]
[1643836477136,0.05,37387.0,37373.0,0.4117798]
[1643836477336,0.05,37387.0,37373.0,0.6498994]
[1643836477535,0.3845394,37389.0,37373.0,0.4117798]
[1643836477735,0.31335623,37386.0,37381.0,0.07546574]
[1643836477939,0.05,37386.0,37381.0,0.07546574]
[1643836478143,0.05,37386.0,37379.0,0.30791455]
[1643836478340,0.06,37389.0,37379.0,0.30791455]
[1643836478739,0.01,37389.0,37379.0,0.30791455]
[1643836478941,0.01,37389.0,37385.0,0.26338257]
[1643836479139,0.5,37386.0,37382.0,0.27133921]
[1643836479341,0.55,37386.0,37380.0,0.10331136]
[1643836479781,0.05,37386.0,37380.0,0.10331136]
[1643836480181,0.005,37389.0,37383.0,0.29174753]
[1643836480485,0.29318397,37385.0,37383.0,0.29174753]
[1643836480880,0.29318397,37385.0,37380.0,0.10331136]
[1643836481084,0.29318397,37385.0,37378.0,0.00063415]
[1643836481283,0.35942016,37385.0,37375.0,0.133745]
[1643836481483,0.00064281,37384.0,37378.0,0.00063415]
[1643836481887,0.22984239,37380.0,37378.0,0.00063415]
[1643836482085,1.303447,37379.0,37378.0,0.00063415]
[1643836482284,0.453447,37379.0,37378.0,0.00037415]
[1643836482484,0.27984239,37380.0,37374.0,0.36092049]
[1643836482684,0.27984239,37380.0,37375.0,0.27892245]
[1643836482685,0.21965911,37379.0,37375.0,0.27892245]
[1643836482885,0.13378374,37380.0,37375.0,0.27892245]
[1643836483835,0.28124677,37378.0,37376.0,0.00019026]
[1643836484334,0.33124677,37378.0,37376.0,0.00019026]
[1643836484736,0.05,37378.0,37376.0,0.00019026]
[1643836484939,0.00017905,37379.0,37377.0,0.03639]
[1643836485136,0.05,37380.0,37375.0,0.00063355]
[1643836485341,0.0226794,37381.0,37375.0,0.00063355]
[1643836485642,0.353447,37380.0,37375.0,0.00063355]
[1643836485837,0.24793459,37379.0,37375.0,0.00063355]
[1643836486041,0.0757631,37377.0,37367.0,0.10021269]
[1643836486238,0.23626553,37372.0,37365.0,0.23208172]
[1643836486639,0.28626553,37372.0,37365.0,0.23208172]
[1643836486837,0.28033001,37371.0,37365.0,0.23208172]
[1643836487088,0.28033001,37371.0,37366.0,0.22543521]
[1643836487292,0.06690355,37370.0,37366.0,0.22543521]
[1643836487487,0.06690355,37370.0,37366.0,0.22606892]
[1643836487888,0.0670826,37370.0,37366.0,0.22606892]
[1643836488191,0.1170826,37370.0,37366.0,0.00063371]
[1643836488388,0.1170826,37370.0,37365.0,0.33504706]
[1643836488589,0.1170826,37370.0,37366.0,0.00063371]
[1643836489588,0.1170826,37370.0,37365.0,0.33504706]
[1643836490190,0.1170826,37370.0,37365.0,0.59782319]
[1643836490588,0.1170826,37370.0,37365.0,0.33504706]
[1643836492038,0.1170826,37370.0,37368.0,0.00010888]
[1643836492239,0.066904,37371.0,37367.0,0.24671146]
[1643836492240,0.00017905,37371.0,37367.0,0.24671146]
[1643836492538,0.00017905,37371.0,37368.0,0.036415]
[1643836492736,0.00017905,37371.0,37367.0,0.24671146]
[1643836492737,0.06707148,37373.0,37367.0,0.24671146]
[1643836492939,0.06707148,37373.0,37371.0,0.28122061]
[1643836493137,0.00017905,37373.0,37371.0,0.37080048]
[1643836493341,0.00017905,37374.0,37371.0,0.37080048]
[1643836494039,0.11707305,37375.0,37371.0,0.37080048]
[1643836494688,0.11707305,37375.0,37371.0,0.37142949]
[1643836494887,0.05017905,37375.0,37371.0,0.61974381]
[1643836495088,0.00017905,37376.0,37371.0,0.61880326]
[1643836495487,0.00017905,37376.0,37371.0,0.66880326]
[1643836495689,0.00017905,37378.0,37372.0,0.036403]
[1643836495893,0.00017905,37378.0,37377.0,0.54118231]
[1643836496289,0.02081781,37379.0,37377.0,0.54118231]
[1643836496691,0.02081781,37379.0,37378.0,0.241094]
[1643836496892,0.02081781,37379.0,37378.0,0.28799718]
[1643836497089,0.00017905,37381.0,37378.0,0.28799718]
[1643836497090,0.00080831,37381.0,37378.0,0.03639]
[1643836497392,0.00080831,37381.0,37378.0,0.28404583]
[1643836497689,0.00080831,37381.0,37377.0,0.54118231]
[1643836497690,0.00062926,37381.0,37379.0,0.036386]
[1643836497890,0.00062926,37381.0,37378.0,0.08604034]
[1643836498090,0.00017905,37382.0,37378.0,0.08604034]
[1643836498339,0.00045306,37382.0,37378.0,0.08604034]
[1643836498542,0.00045306,37382.0,37378.0,0.15265434]
[1643836498940,0.00063211,37382.0,37378.0,0.15265434]
[1643836499140,0.00063211,37382.0,37378.0,0.08578134]
[1643836499342,0.00017905,37382.0,37378.0,0.08578134]
[1643836499542,0.00045306,37382.0,37378.0,0.08578134]
[1643836500442,0.00017905,37383.0,37378.0,0.08578134]
[1643836500643,0.00064171,37382.0,37378.0,0.08578134]
[1643836500843,0.27999758,37381.0,37376.0,0.00062982]
[1643836501047,0.353447,37380.0,37376.0,0.00062982]
[1643836501244,0.33017663,37381.0,37376.0,0.00062982]
[1643836501443,0.28017663,37381.0,37376.0,0.00062982]
[1643836501644,0.33017663,37381.0,37373.0,0.0001067]
[1643836501843,0.13378535,37380.0,37376.0,0.00062982]
[1643836502294,0.05,37379.0,37376.0,0.00062982]
[1643836502795,0.00017905,37380.0,37376.0,0.00062982]
[1643836502994,0.23524332,37380.0,37375.0,0.29453061]
[1643836503195,0.23524332,37380.0,37376.0,0.00062983]
[1643836503397,0.25066938,37377.0,37376.0,0.00062983]
[1643836503601,0.30066938,37377.0,37376.0,0.00062983]
[1643836503797,0.05,37377.0,37376.0,0.00062983]
[1643836504097,0.35230837,37380.0,37373.0,0.28897787]
[1643836504298,0.00017905,37379.0,37375.0,0.00062985]
[1643836504496,0.00017905,37379.0,37376.0,0.036393]
[1643836504698,0.00017905,37379.0,37377.0,0.25626644]
[1643836504897,0.0214056,37381.0,37379.0,0.36250092]
[1643836505096,0.00064167,37381.0,37379.0,0.36250092]
[1643836505301,0.00017905,37382.0,37380.0,0.24048166]
[1643836505497,0.00017905,37382.0,37381.0,0.036381]
[1643836505498,0.00064171,37382.0,37381.0,0.036381]
[1643836506448,0.00017905,37388.0,37381.0,0.036381]
[1643836506646,0.00017905,37388.0,37382.0,0.01861894]
[1643836506848,0.005,37389.0,37384.0,0.27748865]
[1643836507046,0.005,37389.0,37385.0,0.036368]
[1643836507245,0.005,37389.0,37387.0,0.25775839]
[1643836507646,0.005,37389.0,37386.0,0.28497719]
[1643836508247,0.005,37389.0,37386.0,0.33497719]
[1643836508445,0.005,37389.0,37386.0,0.28497719]
[1643836508646,0.005,37389.0,37388.0,0.25488512]
[1643836508850,0.005,37389.0,37388.0,0.35665539]
[1643836509485,0.005,37389.0,37388.0,0.46236649]
[1643836510085,0.005,37389.0,37388.0,0.46210649]
[1643836510887,0.005,37389.0,37388.0,0.20748137]
[1643836511688,0.005,37389.0,37388.0,0.20732576]
[1643836512188,0.005,37389.0,37388.0,0.10581549]
[1643836513557,1.258447,37389.0,37388.0,0.10581549]
[1643836513765,1.308447,37389.0,37388.0,0.10581549]
[1643836514161,0.408447,37389.0,37388.0,0.10581549]
[1643836514359,0.64987474,37389.0,37388.0,0.05295994]
[1643836514558,1.09987474,37389.0,37388.0,0.05295994]
[1643836514762,1.09987474,37389.0,37388.0,0.10555549]
[1643836514957,0.64987474,37389.0,37388.0,0.10555549]
[1643836515958,0.74987474,37389.0,37388.0,0.10555549]
[1643836516661,1.24987474,37389.0,37388.0,0.10555549]
[1643836516858,1.29987474,37389.0,37388.0,0.10555549]
[1643836517100,1.24987474,37389.0,37388.0,0.10555549]
[1643836517300,1.208447,37389.0,37388.0,0.10529549]
[1643836517500,1.208447,37389.0,37388.0,0.05269994]
[1643836517700,0.408447,37389.0,37388.0,0.10529549]
[1643836517902,0.62014818,37389.0,37388.0,0.10529549]
[1643836518502,1.47014818,37389.0,37388.0,0.10529549]
[1643836518703,0.62014818,37389.0,37388.0,0.10529549]
[1643836519004,0.67014818,37389.0,37388.0,0.10529549]
[1643836519605,1.12014818,37389.0,37388.0,0.10529549]
[1643836519801,1.92014818,37389.0,37388.0,0.10506949]
[1643836520003,1.12014818,37389.0,37388.0,0.05259555]
[1643836520202,1.12014818,37389.0,37388.0,0.10506949]
[1643836521471,1.92014818,37389.0,37388.0,0.10506949]
[1643836521876,2.02014818,37389.0,37388.0,0.10506949]
[1643836522073,2.27014818,37389.0,37388.0,0.02044938]
[1643836522468,2.27014818,37389.0,37388.0,0.02055377]
[1643836523269,2.33703618,37389.0,37388.0,0.02055377]
[1643836523471,2.38633618,37389.0,37388.0,0.02055377]
[1643836524496,2.13633618,37389.0,37388.0,0.02055377]
[1643836524696,1.33633618,37389.0,37388.0,0.02055377]
[1643836524894,1.26944818,37389.0,37388.0,0.02055377]
[1643836525095,0.81944818,37389.0,37388.0,0.02055377]
[1643836525293,0.557747,37389.0,37388.0,0.00010439]
[1643836525492,1.007747,37389.0,37388.0,0.00010439]
[1643836525692,0.508447,37389.0,37388.0,0.02055377]
[1643836525892,0.72170139,37389.0,37388.0,0.02055377]
[1643836526093,0.508447,37389.0,37388.0,0.02055377]
[1643836526392,1.16773817,37389.0,37388.0,0.02055377]
[1643836527394,1.58986778,37389.0,37388.0,0.02055377]
[1643836527993,1.58034884,37389.0,37388.0,0.02055377]
[1643836528237,1.20751923,37389.0,37388.0,0.02055377]
[1643836528442,0.54822806,37389.0,37388.0,0.02055377]
[1643836528638,0.76177935,37389.0,37388.0,0.02055377]
[1643836528837,0.81177935,37389.0,37388.0,0.02055377]
[1643836529239,0.59822806,37389.0,37388.0,0.02055377]
[1643836529840,0.49822806,37389.0,37388.0,0.02055377]
[1643836530039,0.44892806,37389.0,37388.0,0.02055377]
[1643836531339,0.70271303,37389.0,37388.0,0.02055377]
[1643836532192,0.44892806,37389.0,37388.0,0.02055377]
[1643836533188,0.66759922,37389.0,37388.0,0.02055377]
[1643836533588,0.44892806,37389.0,37388.0,0.02055377]
[1643836533789,0.39892806,37389.0,37388.0,0.02055377]
[1643836534195,0.49892806,37389.0,37388.0,0.02055377]
[1643836534390,1.99892806,37389.0,37388.0,0.02055377]
[1643836534991,1.99892806,37389.0,37388.0,0.32833075]
[1643836534992,0.04548106,37389.0,37388.0,0.32833075]
[1643836535291,0.04548106,37389.0,37388.0,0.59981158]
[1643836535292,0.005,37389.0,37388.0,0.59981158]
[1643836535489,0.005,37389.0,37388.0,0.63617258]
[1643836536144,0.005,37389.0,37388.0,0.59981158]
[1643836538148,0.005,37389.0,37388.0,0.32833075]
[1643836539152,0.005,37389.0,37388.0,0.56393057]
[1643836539516,0.01,37409.0,37389.0,0.95]
[1643836539712,0.01,37409.0,37390.0,1.62194382]
[1643836539713,0.00017939,37391.0,37390.0,1.62194382]
[1643836539914,0.06684,37405.0,37391.0,0.75]
[1643836540111,0.06684,37405.0,37400.0,0.56583908]
[1643836540112,0.29610312,37405.0,37400.0,0.56583908]
[1643836540315,0.01,37409.0,37404.0,0.07448521]
[1643836540520,0.26739647,37416.0,37404.0,0.07448521]
[1643836540521,0.18306792,37416.0,37404.0,0.07448521]
[1643836540717,0.54048194,37423.0,37404.0,0.07448521]
[1643836540718,0.12193494,37417.0,37404.0,0.07448521]
[1643836540915,0.06683,37413.0,37404.0,0.07448521]
[1643836541312,0.06683,37413.0,37400.0,0.56583908]
[1643836541313,0.29233922,37411.0,37400.0,0.02044938]
[1643836541519,0.22550498,37411.0,37400.0,0.02044938]
[1643836541916,0.066853,37402.0,37400.0,0.02044938]
[1643836542417,0.066853,37402.0,37400.0,0.02019038]
[1643836543448,0.4,37401.0,37400.0,0.02019038]
[1643836543948,0.66032387,37402.0,37400.0,0.02019038]
[1643836544148,0.66096803,37402.0,37400.0,0.02019038]
[1643836544953,0.66032387,37402.0,37400.0,0.02019038]
[1643836545349,0.66032387,37402.0,37396.0,0.2706228]
[1643836545750,0.66032387,37402.0,37399.0,0.02019038]
[1643836546149,0.18370335,37402.0,37399.0,0.02019038]
[1643836546349,0.18434751,37402.0,37399.0,0.02019038]
[1643836546753,0.18434751,37402.0,37401.0,0.0001042]
[1643836546990,0.53779451,37402.0,37401.0,0.0001042]
[1643836547289,0.81013685,37402.0,37401.0,0.0001042]
[1643836547493,0.80949269,37402.0,37401.0,0.0001042]
[1643836548689,0.18370335,37402.0,37401.0,2e-07]
[1643836550101,0.77997207,37402.0,37401.0,2e-07]
[1643836550291,0.97927207,37402.0,37401.0,2e-07]
[1643836550591,1.07927207,37402.0,37401.0,2e-07]
[1643836550851,1.07927207,37402.0,37394.0,0.00064431]
[1643836550852,0.08885303,37396.0,37394.0,0.00064431]
[1643836551046,0.08885303,37396.0,37392.0,0.20626484]
[1643836551047,0.703447,37395.0,37389.0,0.02066355]
[1643836551246,0.35,37395.0,37394.0,0.00064431]
[1643836551450,0.45,37395.0,37394.0,0.00064431]
[1643836552346,0.45,37395.0,37389.0,0.01907557]
[1643836553149,0.35,37393.0,37386.0,0.09277114]
[1643836553448,0.01907557,37390.0,37389.0,0.27176528]
[1643836554148,0.066859,37392.0,37389.0,0.27176528]
[1643836554600,0.066859,37392.0,37389.0,0.28672605]
[1643836555800,0.066859,37392.0,37389.0,0.01496077]
[1643836556002,0.066859,37392.0,37389.0,0.01560643]
[1643836556602,0.0493,37391.0,37389.0,0.01560643]
[1643836556902,0.81860629,37390.0,37389.0,0.01570671]
[1643836557105,0.86790629,37390.0,37389.0,0.01506105]
[1643836557301,0.96790629,37390.0,37389.0,0.01506105]
[1643836557501,0.96790629,37390.0,37389.0,0.00010028]
[1643836559346,0.0001092,37387.0,37384.0,0.22012759]
[1643836559546,0.0669792,37387.0,37384.0,0.22012759]
[1643836559747,0.0669792,37387.0,37381.0,0.06686819]
[1643836559946,0.0669792,37387.0,37380.0,0.28237846]
[1643836560348,0.0669792,37387.0,37380.0,0.23237846]
[1643836560748,0.0669792,37387.0,37383.0,0.09097666]
[1643836561349,0.0669792,37387.0,37382.0,0.02242219]
[1643836561992,0.0669792,37387.0,37383.0,0.03694958]
[1643836562192,0.0669792,37387.0,37384.0,0.28167251]
[1643836562389,0.0669792,37387.0,37385.0,0.036369]
[1643836562590,0.0001092,37387.0,37384.0,0.26984392]
[1643836562791,0.0001092,37387.0,37386.0,0.26969626]
[1643836562990,0.0001092,37387.0,37386.0,0.75606326]
[1643836563194,0.0001092,37387.0,37386.0,0.30606326]
[1643836563893,0.0001092,37387.0,37386.0,0.75048298]
[1643836564092,0.06703658,37392.0,37387.0,0.00021839]
[1643836564093,0.00017958,37392.0,37387.0,0.00021839]
[1643836564291,0.00017958,37395.0,37388.0,0.03636]
[1643836564492,0.00017958,37395.0,37389.0,0.27152509]
[1643836564692,0.00017958,37395.0,37390.0,0.29558503]
[1643836564892,0.133713,37396.0,37392.0,0.26203142]
[1643836564893,0.13389258,37396.0,37392.0,0.26203142]
[1643836565093,0.13389258,37396.0,37393.0,0.036347]
[1643836565293,0.066852,37395.0,37392.0,0.31203142]
[1643836565492,0.066852,37395.0,37393.0,0.036346]
[1643836565758,0.133713,37396.0,37394.0,0.23198461]
[1643836565955,0.00017958,37397.0,37393.0,0.03699136]
[1643836565956,0.00017958,37397.0,37395.0,0.136343]
[1643836566159,0.00064527,37398.0,37396.0,1.435641]
[1643836566358,0.00064527,37398.0,37397.0,1.94031121]
[1643836566556,0.02084396,37407.0,37398.0,0.7]
[1643836566756,0.01684141,37407.0,37401.0,0.28580294]
[1643836566956,0.01684141,37407.0,37402.0,0.10314772]
[1643836567157,0.001307,37407.0,37404.0,0.45]
[1643836567356,0.01,37414.0,37405.0,0.036315]
[1643836567558,0.01,37414.0,37413.0,0.27218851]
[1643836567957,0.01,37414.0,37413.0,0.24232565]
[1643836568157,0.01,37414.0,37413.0,0.4999196]
[1643836568361,0.01,37414.0,37413.0,0.34388795]
[1643836569258,0.01,37414.0,37413.0,0.63902211]
[1643836569696,0.0006348,37415.0,37413.0,0.63876211]
[1643836569899,0.0006348,37415.0,37414.0,0.103106]
[1643836570095,0.0006348,37415.0,37414.0,0.036292]
[1643836570296,0.066824,37416.0,37413.0,0.35733395]
[1643836570496,0.066824,37416.0,37408.0,0.24351208]
[1643836570497,0.133649,37415.0,37408.0,0.24351208]
[1643836570700,0.00017968,37415.0,37409.0,0.036297]
[1643836570900,0.00017968,37415.0,37410.0,0.32549682]
[1643836571099,0.00017968,37415.0,37411.0,0.57068102]
[1643836571304,0.0674588,37416.0,37412.0,0.036296]
[1643836571499,0.066824,37416.0,37414.0,0.27259189]
[1643836571700,0.00061422,37415.0,37414.0,0.27259189]
[1643836572600,0.066824,37416.0,37414.0,0.27259189]
[1643836572999,0.06743822,37416.0,37414.0,0.27259189]
[1643836573848,0.066824,37416.0,37414.0,0.27259189]
[1643836575348,0.066824,37416.0,37415.0,0.03629]
[1643836575549,0.066824,37416.0,37414.0,0.27259189]
[1643836576149,0.066824,37416.0,37415.0,2.70373217]
[1643836576351,0.066824,37416.0,37415.0,0.036288]
[1643836576551,0.066824,37416.0,37415.0,0.21143846]
[1643836576749,0.066824,37416.0,37414.0,0.27233189]
[1643836577013,0.066824,37416.0,37415.0,8.599e-05]
[1643836579120,0.066824,37416.0,37407.0,0.26986445]
[1643836579121,0.616824,37416.0,37407.0,0.26986445]
[1643836579320,0.616824,37416.0,37413.0,0.27127687]
[1643836579321,0.06700368,37416.0,37413.0,0.27127687]
[1643836579721,0.06700368,37416.0,37414.0,0.03629]
[1643836579921,0.066824,37416.0,37414.0,0.03629]
[1643836580121,0.06744079,37416.0,37414.0,0.03629]
[1643836581148,0.066824,37416.0,37414.0,0.03629]
[1643836582142,0.066824,37416.0,37415.0,8.434e-05]
[1643836582544,0.066824,37416.0,37415.0,0.03637234]
[1643836582944,0.066824,37416.0,37415.0,8.434e-05]
[1643836584693,0.066824,37416.0,37415.0,0.03637234]
[1643836585294,0.066824,37416.0,37415.0,0.08628834]
[1643836585495,0.00061685,37417.0,37415.0,0.08628834]
[1643836585696,0.00061685,37417.0,37416.0,0.036287]
[1643836585897,0.01017968,37419.0,37416.0,0.036287]
[1643836586502,0.06681,37418.0,37416.0,0.036287]
[1643836587299,0.06681,37418.0,37415.0,8.434e-05]
[1643836587701,0.353447,37417.0,37415.0,8.434e-05]
[1643836587900,0.552747,37417.0,37415.0,8.434e-05]
[1643836588103,1.92940354,37416.0,37415.0,8.434e-05]
[1643836588342,0.24419433,37410.0,37406.0,0.28318102]
[1643836588544,0.066836,37414.0,37405.0,0.02044824]
[1643836588744,0.166836,37414.0,37404.0,0.29956203]
[1643836588943,0.116136,37414.0,37404.0,0.29956203]
[1643836589148,0.11631568,37414.0,37404.0,0.29956203]
[1643836589443,0.28272018,37411.0,37405.0,0.2043014]
[1643836589643,0.34955318,37411.0,37405.0,0.2043014]
[1643836589845,0.35020092,37411.0,37405.0,0.2043014]
[1643836590145,0.35020092,37411.0,37404.0,0.29956203]
[1643836590146,0.35020092,37411.0,37404.0,0.36639257]
[1643836590345,0.3503806,37411.0,37404.0,0.43322457]
[1643836590544,0.3503806,37411.0,37405.0,0.08092906]
[1643836590844,0.3503806,37411.0,37404.0,0.43322457]
[1643836590845,0.06701268,37411.0,37404.0,0.43322457]
[1643836591044,0.00064775,37409.0,37404.0,0.43322457]
[1643836591246,0.066833,37408.0,37404.0,0.43322457]
[1643836591443,0.066833,37408.0,37404.0,0.36639257]
[1643836591647,0.00064775,37409.0,37406.0,0.2196214]
[1643836591849,0.00017968,37408.0,37406.0,0.2196214]
[1643836592096,0.00017968,37408.0,37407.0,0.03631]
[1643836592496,0.00064775,37409.0,37407.0,0.03631]
[1643836593095,0.06683,37411.0,37407.0,0.03631]
[1643836593295,0.06683,37411.0,37410.0,0.23022044]
[1643836594797,0.00064774,37412.0,37410.0,0.23022044]
[1643836594798,0.00064774,37412.0,37410.0,0.59302498]
[1643836595000,0.00064774,37412.0,37411.0,0.76757097]
[1643836595600,0.00017968,37417.0,37411.0,0.26757097]
[1643836595843,0.00045146,37413.0,37412.0,0.036294]
[1643836596048,0.00045146,37413.0,37412.0,0.27203207]
[1643836596646,0.00045146,37413.0,37412.0,0.56316137]
[1643836596847,0.01180559,37419.0,37413.0,1.45]
[1643836596848,0.00017968,37417.0,37413.0,1.45]
[1643836597052,0.00017968,37417.0,37414.0,0.03629]
[1643836597245,0.00017968,37417.0,37414.0,0.08559]
[1643836597449,0.01017968,37419.0,37415.0,0.036288]
[1643836597647,0.01017968,37419.0,37416.0,0.3842384]
[1643836597846,0.01,37419.0,37417.0,0.036283]
[1643836598045,0.01,37419.0,37418.0,0.7993]
[1643836598245,0.00035132,37419.0,37418.0,0.08558]
[1643836598447,0.27199866,37424.0,37418.0,0.18558]
[1643836598647,0.27199866,37424.0,37415.0,0.133602]
[1643836598648,0.22767574,37423.0,37415.0,0.133602]
[1643836598847,0.27199866,37424.0,37411.0,0.133616]
[1643836599248,0.22767574,37423.0,37411.0,0.133616]
[1643836599496,0.22767574,37423.0,37417.0,0.24170339]
[1643836599698,0.27199866,37424.0,37417.0,0.24170339]
[1643836600095,0.066814,37420.0,37417.0,0.24170339]
[1643836600293,0.066814,37420.0,37416.0,0.29956648]
[1643836600494,0.066814,37420.0,37411.0,0.20017385]
[1643836600693,0.066814,37420.0,37412.0,0.036284]
[1643836601093,0.20104007,37419.0,37411.0,0.06655785]
[1643836601298,0.20104007,37419.0,37410.0,7.388e-05]
[1643836601299,0.36638605,37415.0,37410.0,7.388e-05]
[1643836601495,0.27867423,37415.0,37410.0,7.388e-05]
[1643836601693,0.22758137,37417.0,37410.0,7.388e-05]
[1643836601694,0.22758137,37417.0,37411.0,0.036293]
[1643836601894,0.22758137,37417.0,37410.0,7.388e-05]
[1643836602198,0.066824,37415.0,37413.0,7.384e-05]
[1643836603094,0.066824,37415.0,37413.0,0.39693947]
[1643836603550,0.066817,37418.0,37414.0,0.036292]
[1643836603746,0.066817,37418.0,37416.0,0.29074971]
[1643836605949,0.066813,37420.0,37416.0,0.29074971]
[1643836606250,0.066813,37420.0,37416.0,0.29048871]
[1643836606850,0.30629028,37420.0,37417.0,7.377e-05]
[1643836607093,0.066813,37420.0,37417.0,7.377e-05]
[1643836607693,0.066807,37423.0,37417.0,7.377e-05]
[1643836607994,0.00045155,37421.0,37417.0,7.377e-05]
[1643836608194,0.00045155,37421.0,37418.0,0.23202471]
[1643836608392,0.00045155,37421.0,37417.0,7.377e-05]
[1643836608595,0.066811,37420.0,37417.0,7.377e-05]
[1643836609395,0.066811,37420.0,37417.0,0.26835441]
[1643836609694,0.066811,37420.0,37417.0,7.377e-05]
[1643836611148,0.0006488,37421.0,37417.0,7.377e-05]
[1643836611349,0.066808,37423.0,37417.0,7.377e-05]
[1643836611549,0.0006488,37421.0,37417.0,7.377e-05]
[1643836611752,0.0006488,37421.0,37418.0,0.09513935]
[1643836611949,0.0006488,37421.0,37419.0,0.34486475]
[1643836612152,0.0006488,37421.0,37420.0,0.55180938]
[1643836612347,0.25391327,37426.0,37420.0,0.55180938]
[1643836612348,0.00017985,37426.0,37420.0,0.55180938]
[1643836612551,0.2938645,37427.0,37421.0,0.066799]
[1643836612552,0.00017985,37425.0,37421.0,0.066799]
[1643836612748,0.00045239,37422.0,37421.0,0.066799]
[1643836613654,0.25417354,37425.0,37420.0,0.71591895]
[1643836613949,0.00045239,37423.0,37420.0,0.71591895]
[1643836614348,0.00045239,37423.0,37420.0,0.78271995]
[1643836614599,0.00045239,37423.0,37421.0,0.03601]
[1643836614800,0.00017985,37426.0,37421.0,0.03601]
[1643836614998,0.066799,37427.0,37421.0,0.05]
[1643836615204,0.00064991,37423.0,37420.0,1.20891005]
[1643836615400,0.00064991,37423.0,37421.0,0.036014]
[1643836615799,0.00064991,37423.0,37422.0,0.23757779]
[1643836616101,0.00017985,37428.0,37423.0,0.06679179]
[1643836616300,0.00064991,37424.0,37423.0,0.06679179]
[1643836616499,0.00064991,37424.0,37423.0,0.10280279]
[1643836617101,0.00064991,37424.0,37423.0,0.15210279]
[1643836617303,0.00017985,37428.0,37423.0,0.47638727]
[1643836617605,0.00045156,37425.0,37424.0,0.036007]
[1643836617804,0.00045156,37425.0,37424.0,0.085307]
[1643836618249,0.00045156,37425.0,37424.0,0.22293524]
[1643836618444,0.00017985,37428.0,37424.0,0.97293524]
[1643836618643,0.01,37429.0,37425.0,0.036005]
[1643836618845,0.01,37429.0,37426.0,0.7655688]
[1643836619045,0.01,37429.0,37427.0,0.036]
[1643836619446,0.01,37429.0,37428.0,0.68216503]
[1643836619645,0.01,37429.0,37428.0,0.76816303]
[1643836620047,0.01,37429.0,37428.0,0.31816303]
[1643836620452,0.01,37429.0,37428.0,0.085738]
[1643836620655,0.01,37429.0,37428.0,0.035998]
[1643836620950,0.01,37429.0,37427.0,0.035999]
[1643836621551,0.01,37429.0,37428.0,0.64813224]
[1643836621749,0.01,37429.0,37428.0,0.102784]
[1643836622005,0.01,37429.0,37428.0,0.1028576]
[1643836622403,0.01,37429.0,37428.0,0.1528576]
[1643836623407,0.01,37429.0,37428.0,0.7528576]
[1643836623805,0.01,37429.0,37428.0,0.8028576]